Cogmind - Beta 13 @@@ ROGUE MODE // 2024.04.03 @ 16:52:32 Player: Fblade Result: Core destroyed Performance ------------- Evolutions (3) 1500 Regions Visited (6) 1200 Robots Destroyed (19) 95 Value Destroyed (349) 349 Prototype IDs (2) 40 Alien Tech Used (0) 0 Bonus (0) 0 TOTAL SCORE: 3184 Bonus ------- None Cogmind --------- Core Integrity 0/700 Matter 132/300 Energy 94/150 System Corruption 0% Temperature Critical (859) Movement Core (550) Ox10 Location -7/Factory Parts ------- > --- POWER (2) -------- Micro Nuclear Core > --- PROPULSION (5) --- Improved Carbon-fiber Leg > --- UTILITY (3) ------ Advanced Visual Processing Unit Layered Light Armor Plating Layered Light Armor Plating > --- WEAPON (3) ------- EM Pulse Cannon Heavy Particle Cannon Plasma Cannon > --- INVENTORY (5) ---- (None) Peak State ------------ > --- POWER ------------ Micro Nuclear Core > --- PROPULSION ------- Improved Carbon-fiber Leg > --- UTILITY ---------- Advanced Visual Processing Unit Layered Light Armor Plating Layered Light Armor Plating > --- WEAPON ----------- EM Pulse Cannon Heavy Particle Cannon Plasma Cannon > --- INVENTORY -------- (None) [Rating: 29] Favorites ----------- Power Light Ion Engine Engine Light Ion Engine Power Core Micro Nuclear Core Propulsion Flight Unit Leg Improved Carbon-fiber Leg Wheel Wheel Hover Unit Hover Unit Flight Unit Flight Unit Utility Advanced Visual Processing Unit Device Sensor Array Storage Small Storage Unit Processor Advanced Visual Processing Unit Protection Improved Light Armor Plating Weapon Medium Laser Energy Gun Medium Laser Energy Cannon Heavy Particle Cannon Build | -11 -10 -10 -9 -9 -8 -7 ------- Run | Yrd Mat Min Mat Min Mat Fac Slots Evolved 6 | . . . 2 . 2 2 Power 1 | . . . 1 . . . Propulsion 3 | . . . 1 . 1 1 Utility 1 | . . . . . . 1 Weapon 1 | . . . . . 1 . Parts Attached 42 | 6 6 9 6 3 4 8 Power 10 | 1 1 3 1 1 2 1 Engine 9 | 1 1 3 1 1 2 . Core 1 | . . . . . . 1 Reactor . | . . . . . . . Propulsion 13 | 2 4 4 2 . . 1 Treads . | . . . . . . . Leg 1 | . . . . . . 1 Wheel 2 | 2 . . . . . . Hover 1 | . 1 . . . . . Flight 9 | . 3 4 2 . . . Utility 7 | 1 1 . 2 . . 3 Device 1 | . 1 . . . . . Storage 1 | 1 . . . . . . Processor 2 | . . . 2 . . . Hackware . | . . . . . . . Protection 3 | . . . . . . 3 Artifact . | . . . . . . . Weapon 12 | 2 . 2 1 2 2 3 Energy Gun 8 | 2 . 2 1 2 1 . Energy Cannon 4 | . . . . . 1 3 Ballistic Gun . | . . . . . . . Ballistic Cannon . | . . . . . . . Launcher . | . . . . . . . Special Weapon . | . . . . . . . Impact Weapon . | . . . . . . . Slashing Weapon . | . . . . . . . Piercing Weapon . | . . . . . . . Special Melee Weapon . | . . . . . . . Unidentified Prototypes . | . . . . . . . Parts Lost 12 | . 1 2 1 3 2 3 Power 5 | . . 2 . 1 1 1 Propulsion 2 | . . . 1 . 1 . Utility 1 | . . . . . . 1 Weapon 4 | . 1 . . 2 . 1 Highest Loss Streak 3 | . 1 1 1 3 2 3 To Critical Strikes . | . . . . . . . Average Slot Usage (%) 76 | . 76 83 81 86 72 57 Engine 11 | . 14 13 11 10 15 5 Leg 1 | . . . . . . 6 Wheel 2 | . 10 . . . . . Flight 21 | . 17 28 33 33 25 1 Device 5 | . 4 14 4 . . . Storage 1 | . 5 . . . . . Processor 8 | . . . 14 22 18 12 Protection 1 | . . . . . . 7 Energy Gun 19 | . 23 27 18 21 13 6 Energy Cannon 2 | . . . . . . 13 Naked Turns . | . . . . . . . Heaviest Build 33 | 14 14 7 7 11 10 33 Greatest Support 26 | 26 26 8 12 12 12 18 Greatest Overweight (x) 10 | 1 . . . . . 10 Average Overweight (x) . | . . . . . . . Largest Inventory Capacity 8 | 8 8 5 5 5 5 5 Average Capacity 5 | 7 6 5 5 5 5 5 Most Carried 8 | 8 8 5 5 5 5 5 Average Carried 3 | 4 5 4 3 3 4 2 Final Capacity 8 | 8 5 5 5 5 5 5 Final Carried 6 | 6 5 3 5 2 5 . Class Distribution -------------------- 58% | Mutant 23% | Scavenger-Mutant 17% | Tank Dominant Class ---------------- Mutant | -10/Materials Mutant | -10/Mines Scavenger-Mutant | -9/Materials Scavenger-Mutant | -9/Mines Mutant | -8/Materials Tank | -7/Factory Resources | -11 -10 -10 -9 -9 -8 -7 ----------- Run | Yrd Mat Min Mat Min Mat Fac Matter Collected 470 | 257 53 95 45 20 . . Remotely . | . . . . . . . Salvage Created 444 | . 96 144 77 35 . 92 Parts 39 | . 8 17 7 4 . 3 Haulers Intercepted . | . . . . . . . Recyclers Shooed 1 | . . . . . . 1 Parts Field Recycled . | . . . . . . . Retrieved Matter . | . . . . . . . Parts Self-Destructed . | . . . . . . . Prevented . | . . . . . . . Kills | -11 -10 -10 -9 -9 -8 -7 ------- Run | Yrd Mat Min Mat Min Mat Fac Combat Hostiles Destroyed 16 | . 3 8 1 2 . 2 Guns 14 | . 3 8 1 2 . . Cannons 2 | . . . . . . 2 Classes Destroyed 7 | . 3 1 2 . . 1 Worker 1 | . . 1 . . . . Operator 1 | . 1 . . . . . Watcher 1 | . . . 1 . . . Swarmer 12 | . 2 8 . 2 . . Grunt 2 | . 1 . . . . 1 Duelist 1 | . . . . . . 1 Sentry 1 | . . . 1 . . . Best Kill Streak 4 | . 2 4 1 1 . 1 Combat Bots Only 3 | . 2 3 1 1 . 1 Max Kills in Single Turn 2 | . 1 2 1 1 . 1 Gunslinging 1 | . . 1 . . . . Exploded . | . . . . . . . Melee . | . . . . . . . Uniques/NPCs Destroyed . | . . . . . . . Combat | -11 -10 -10 -9 -9 -8 -7 -------- Run | Yrd Mat Min Mat Min Mat Fac Hostile Shots Fired 207 | . 33 48 22 43 17 44 Missed 71 | . 18 22 9 13 7 2 Damage Taken 2456 | . 177 296 172 254 147 1410 Core 1029 | . 63 66 86 70 29 715 Absorbed by Shields . | . . . . . . . Regen/Repaired (Parts) 50 | . . . 50 . . . Core Remaining (%) 75 | 100 . 48 . 61 94 . Volleys Fired 72 | . 13 19 3 17 8 12 Largest 3 | . 2 2 2 2 2 3 Hottest 195 | . 90 90 90 90 103 195 Shots Fired 135 | . 24 30 6 32 13 30 Gun 112 | . 24 30 6 32 13 7 Cannon 23 | . . . . . . 23 Launcher . | . . . . . . . Special . | . . . . . . . Kinetic . | . . . . . . . Thermal 106 | . 13 30 4 16 13 30 Explosive . | . . . . . . . Electromagnetic 29 | . 11 . 2 16 . . Robot Hit Streak 6 | . 6 2 5 2 6 5 Robot Miss Streak 10 | . 3 4 1 6 10 3 Penetration Max . | . . . . . . . Secondary Targets 4 | . 1 2 . 1 . . Max Gunslinging Chain 1 | . 1 1 . 1 . . Shots Hit Robots 63 | . 15 10 5 8 6 19 Core Hits 27 | . 7 9 3 2 1 5 Critical Kills . | . . . . . . . Critical Parts Destroyed . | . . . . . . . Critical Strikes 3 | . . 3 . . . . Burn 3 | . . 3 . . . . Melee Attacks . | . . . . . . . Impact . | . . . . . . . Slashing . | . . . . . . . Piercing . | . . . . . . . Sneak Attacks . | . . . . . . . Combat Hostiles . | . . . . . . . Follow-up Attacks . | . . . . . . . Damage Inflicted 1013 | . 188 169 59 93 80 424 Guns 633 | . 188 169 59 93 80 44 Cannons 380 | . . . . . . 380 Explosions . | . . . . . . . Melee . | . . . . . . . Ramming . | . . . . . . . Kinetic . | . . . . . . . Thermal 858 | . 110 169 37 38 80 424 Explosive . | . . . . . . . Electromagnetic 155 | . 78 . 22 55 . . Impact . | . . . . . . . Slashing . | . . . . . . . Piercing . | . . . . . . . Highest Corruption . | . . . . . . . Average Corruption . | . . . . . . . Corruption Purged . | . . . . . . . Corruption Blocked . | . . . . . . . Overload Shots . | . . . . . . . Overflow Damage 2 | . . . . . . 2 Projectiles 2 | . . . . . . 2 Explosions . | . . . . . . . Melee . | . . . . . . . Knockbacks . | . . . . . . . Impact . | . . . . . . . Kinetic . | . . . . . . . Secondary . | . . . . . . . Self-Inflicted Damage . | . . . . . . . Shots . | . . . . . . . Rammed . | . . . . . . . Targets Rammed 1 | . . . . . . 1 Kicked 1 | . . . . . . 1 Crushed . | . . . . . . . Highest Temperature 994 | . 160 134 69 330 259 994 Average Temperature 200 | . 57 54 29 225 151 556 Received Heat Transfer 639 | . 72 9 69 21 63 405 Effects 25 | . . . . . 1 24 Shutdowns 6 | . . . . . . 6 Energy Bleed 4 | . . . . . 1 3 Interference 3 | . . . . . . 3 Matter Decay 2 | . . . . . . 2 Short Circuit 1 | . . . . . . 1 Damage (minor) 3 | . . . . . . 3 Damage (core) 6 | . . . . . . 6 Siege Activations . | . . . . . . . Robots Corrupted . | . . . . . . . Combat Hostiles . | . . . . . . . Parts Fried . | . . . . . . . Impact Corruptions . | . . . . . . . Robots Melted . | . . . . . . . Combat Hostiles . | . . . . . . . Parts Melted 4 | . . 2 . . . 2 Heat Transferred 2169 | . 333 680 99 111 174 772 Parts Sabotaged . | . . . . . . . Parts Stolen . | . . . . . . . Parts Stripped . | . . . . . . . Power Chain Reactions . | . . . . . . . Alert | -11 -10 -10 -9 -9 -8 -7 ------- Run | Yrd Mat Min Mat Min Mat Fac Peak Influence 329 | . 224 329 214 213 116 80 Initial 124 | . . 99 124 83 82 50 Average 129 | . 114 228 168 124 94 53 Maximum Alert Level 1 | . 1 1 1 1 . . Low Security (%) 80 | 100 83 42 81 95 100 100 Level 1 19 | . 16 57 18 4 . . Level 2 . | . . . . . . . Level 3 . | . . . . . . . Level 4 . | . . . . . . . Level 5 . | . . . . . . . High Security . | . . . . . . . Max Security . | . . . . . . . Squads Dispatched 5 | . 2 . 2 . 1 . Investigation 4 | . 1 . 2 . 1 . Extermination . | . . . . . . . Reinforcement 1 | . 1 . . . . . Assault . | . . . . . . . Garrison . | . . . . . . . Intercept . | . . . . . . . Searches Triggered . | . . . . . . . Construction Impeded . | . . . . . . . Haulers Reinforced . | . . . . . . . Active Scanning Responses . | . . . . . . . Cargo Convoy Interrupts . | . . . . . . . Stealth | -11 -10 -10 -9 -9 -8 -7 --------- Run | Yrd Mat Min Mat Min Mat Fac Distress Signals 3 | . 1 . . . 2 . Communications Jammed . | . . . . . . . Distress Signals . | . . . . . . . Times Spotted 54 | . 15 12 8 11 5 3 Peak Tracking Total 6 | . 4 3 5 6 4 3 Tactical Retreats 10 | . 3 2 1 3 1 . Traps | -11 -10 -10 -9 -9 -8 -7 ------- Run | Yrd Mat Min Mat Min Mat Fac Traps Triggered . | . . . . . . . Indirectly . | . . . . . . . Trap Hack Attempts . | . . . . . . . Triggered . | . . . . . . . Disarmed . | . . . . . . . Reprogrammed . | . . . . . . . Reused . | . . . . . . . Traps Extracted . | . . . . . . . Installed . | . . . . . . . Triggered . | . . . . . . . Machines | -11 -10 -10 -9 -9 -8 -7 ---------- Run | Yrd Mat Min Mat Min Mat Fac Machines Disabled 2 | . 2 . . . . . Max in Single Turn 1 | . 1 . . . . . Machines Repaired . | . . . . . . . Machines Dismantled . | . . . . . . . Machines Sabotaged . | . . . . . . . Overloaded Fab Kills . | . . . . . . . Hacking | -11 -10 -10 -9 -9 -8 -7 --------- Run | Yrd Mat Min Mat Min Mat Fac Machines Accessed 9 | . 4 . 4 . 1 . Terminals 8 | . 4 . 3 . 1 . Fabricators . | . . . . . . . Repair Stations 1 | . . . 1 . . . Recycling Units . | . . . . . . . Scanalyzers . | . . . . . . . Garrison Access . | . . . . . . . Total Hacks 29 | . 12 . 13 . 4 . Successful 21 | . 10 . 7 . 4 . Failed 8 | . 2 . 6 . . . Catastrophic . | . . . . . . . Database Lockouts . | . . . . . . . Manual . | . . . . . . . Terminals 27 | . 12 . 11 . 4 . Fabricators . | . . . . . . . Repair Stations 2 | . . . 2 . . . Recycling Units . | . . . . . . . Scanalyzers . | . . . . . . . Garrison Access . | . . . . . . . Terminal Hacks 19 | . 10 . 5 . 4 . Record 13 | . 5 . 5 . 3 . Prototype ID Bank 1 | . 1 . . . . . Dispatch Records 2 | . 1 . . . 1 . Maintenance Status 1 | . 1 . . . . . Recall Investigation 1 | . 1 . . . . . Zone Layout 1 | . 1 . . . . . Fabricator Hacks . | . . . . . . . Repair Station Hacks 2 | . . . 2 . . . Scan Component 1 | . . . 1 . . . Repair 1 | . . . 1 . . . Recycling Unit Hacks . | . . . . . . . Scanalyzer . | . . . . . . . Garrison Access Hacks . | . . . . . . . Unauthorized Hacks . | . . . . . . . Terminals . | . . . . . . . Fabricators . | . . . . . . . Repair Stations . | . . . . . . . Recycling Units . | . . . . . . . Scanalyzers . | . . . . . . . Garrison Access . | . . . . . . . Data Cores Recovered 1 | . 1 . . . . . Used 1 | . 1 . . . . . Hacking Detections 6 | . 2 . 3 . 1 . Full Trace Events 4 | . 1 . 2 . 1 . Feedback Events . | . . . . . . . Feedback Blocked . | . . . . . . . Robot Schematics Acquired . | . . . . . . . Robots Built . | . . . . . . . Authchips . | . . . . . . . Time . | . . . . . . . Total Robot Build Rating . | . . . . . . . Part Schematics Acquired . | . . . . . . . Parts Built . | . . . . . . . Authchips . | . . . . . . . Time . | . . . . . . . Total Part Build Rating . | . . . . . . . Parts Repaired 1 | . . . 1 . . . Time 26 | . . . 26 . . . Parts Recycled . | . . . . . . . Recycled Matter . | . . . . . . . Retrieved Matter . | . . . . . . . Retrieved Components . | . . . . . . . Parts Scanalyzed . | . . . . . . . Part Schematics Acquired . | . . . . . . . Parts Damaged . | . . . . . . . Bothacking | -11 -10 -10 -9 -9 -8 -7 ------------ Run | Yrd Mat Min Mat Min Mat Fac Used RIF Installer . | . . . . . . . Robots Hacked . | . . . . . . . Non-combat . | . . . . . . . Combat . | . . . . . . . Robot Hacks Applied . | . . . . . . . Relay Couplers Released . | . . . . . . . Fabnet Peak Effective % . | . . . . . . . Robots Rewired . | . . . . . . . Allies Hacked . | . . . . . . . Hacks Repelled . | . . . . . . . Allies | -11 -10 -10 -9 -9 -8 -7 -------- Run | Yrd Mat Min Mat Min Mat Fac Total Allies . | . . . . . . . Largest Group . | . . . . . . . Highest-Rated Group . | . . . . . . . Highest-Rated Ally . | . . . . . . . Total Orders . | . . . . . . . Ally Attacks . | . . . . . . . Total Damage . | . . . . . . . Kills . | . . . . . . . Allies Corrupted . | . . . . . . . Allies Melted . | . . . . . . . Intel | -11 -10 -10 -9 -9 -8 -7 ------- Run | Yrd Mat Min Mat Min Mat Fac Robot Analysis Total . | . . . . . . . Derelict Logs Recovered 5 | . . 3 . 2 . . Drone Launches . | . . . . . . . Drone Recoveries . | . . . . . . . Exploration | -11 -10 -10 -9 -9 -8 -7 ------------- Run | Yrd Mat Min Mat Min Mat Fac Turns Passed 1290 | 89 243 322 128 159 127 222 Spaces Moved 1925 | 79 305 653 238 304 239 107 Core 23 | 21 . . . . . 2 Treads . | . . . . . . . Legs 83 | . . . . . . 83 Wheels 121 | 58 63 . . . . . Hover . | . . . . . . . Flight 1698 | . 242 653 238 304 239 22 Fastest Speed 34 | 50 37 37 34 34 34 37 Average Speed 46 | 86 47 37 34 34 34 162 Slowest Speed 550 | 100 90 37 37 34 37 550 Overloaded Moves . | . . . . . . . Propulsion Burnouts . | . . . . . . . Robots Hopped 3 | . . 2 . 1 . . Cave-ins Triggered . | . . . . . . . Exploration Rate (%) 36 | 4 33 86 29 74 24 4 Regions Visited 6 Branch Regions 2 Pre-discovered Areas 1 | . . . . 1 . . Known Exits Taken 1 | . . . . . 1 . Unknown Exits Taken 5 | 1 1 1 1 1 . . Scrap Searched 4 | . . 2 . 2 . . Spaces Dug . | . . . . . . . Terrain Destroyed . | . . . . . . . Melee . | . . . . . . . Projectile . | . . . . . . . AOE . | . . . . . . . Terrain Rammed . | . . . . . . . Walls Destroyed . | . . . . . . . Machines Disabled . | . . . . . . . Actions | -11 -10 -10 -9 -9 -8 -7 --------- Run | Yrd Mat Min Mat Min Mat Fac Total 2196 | 100 381 704 278 325 272 136 Wait 69 | . 36 3 23 2 5 . Move 1913 | 78 304 648 237 301 238 107 Hop 3 | . . 2 . 1 . . Pick Up 57 | 14 10 12 7 . 10 4 Fast Attach . | . . . . . . . Attach 28 | 6 2 3 5 2 3 7 Detach 4 | . 1 . 1 . 1 1 Swap 14 | . 4 6 1 1 1 1 Drop 35 | 2 11 11 1 1 6 3 Fire 72 | . 13 19 3 17 8 12 Melee . | . . . . . . . Ram . | . . . . . . . Kick 1 | . . . . . . 1 Crush . | . . . . . . . Escape Stasis . | . . . . . . . Rewire . | . . . . . . . Trap . | . . . . . . . Miscellaneous . | . . . . . . . Route ------- -11/Scrapyard -10/Materials -10/Mines (discovered 2 exits: *Mat x2) -9/Materials -9/Mines -8/Materials (discovered 2 exits: *Fac x2) -7/Factory (discovered 1 exit: Sto) History --------- Turn | Location | Event 57 | -11/Scrapyard | Discovered new exit (range 16) 90 | -11/Scrapyard | Entered Materials 303 | -10/Materials | Build established: Mutant 327 | -10/Materials | Discovered new exit (range 16) 333 | -10/Materials | Entered Mines 367 | -10/Mines | Discovered new exit (range 15) 409 | -10/Mines | YI-UF0 nonchalantly dropped a Grenade Launcher on the ground 543 | -10/Mines | Learned Materials security intel 558 | -10/Mines | Learned Materials terminal intel 573 | -10/Mines | Discovered new exit (range 9) 643 | -10/Mines | Core integrity fell below 50% 655 | -10/Mines | Entered Materials 655 | -9/Materials | Evolved 2 slots: Power x1, Propulsion x1 657 | -9/Materials | Loaded intel: 12 terminal locations 739 | -9/Materials | Repaired Sml. Laser? 774 | -9/Materials | Discovered new exit (range 9) 783 | -9/Materials | Entered Mines 858 | -9/Mines | Learned location of 1 exit from Materials 938 | -9/Mines | Build established: Scavenger-Mutant 939 | -9/Mines | Discovered new exit (range 6) 942 | -9/Mines | Entered Materials 942 | -8/Materials | Evolved 2 slots: Propulsion x1, Weapon x1 943 | -8/Materials | Identified exit to Factory 967 | -8/Materials | Lost 3 parts (1p2w) 1056 | -8/Materials | Discovered exit to Factory (range 17) 1069 | -8/Materials | Entered Factory 1069 | -7/Factory | Evolved 2 slots: Propulsion x1, Utility x1 1070 | -7/Factory | Identified exit to Storage 1276 | -7/Factory | Core integrity fell below 50% 1290 | -7/Factory | Core integrity fell below 20% 1292 | -7/Factory | Core destroyed Last Messages --------------- R-06 Scavenger collects Lgt. Nuclear Core. Overheating: Plasma Cannon damaged (-27). Overheating: Core damaged (-140). Critical hit (Burn: +37). Power failure, Mic. Nuclear Core shutdown. Overheating: Plasma Cannon damaged (-21). Overheating: Matter decay (-18). Overheating: System interference. Adv. Visual Processing Unit temporarily disabled. Hvy. Particle Cannon temporarily disabled. Overheating: Mic. Nuclear Core damaged (-16). Critical hit (Burn: +37). Power failure, Mic. Nuclear Core shutdown. M-13 Machinist repairs G-47 Trooper. Critical hit (Burn: +37). M-13 Machinist fits Backup Power I on G-47 Trooper. Overheating: Core damaged (-91). M-13 Machinist repairs Imp. Heat Sink. Power failure, Mic. Nuclear Core shutdown. Overheating: Core damaged (-140). Map ----- +----------------------------------------------------+ | ????????????????????????????############ """"""""" | | ????????????????????????????# ## | | ??????????????????#+##??###?# ## """"""""" | | ?????????????????? ? ?# !!! ## | | ????????????????? ?# !!! ## """"""""" | | ????????????????? ?# !!! ## | | ?????????????????? ?# ## """"""""" | | ???????????????????? ?? ?# | | ??????????????????????# ??? ???# | | ??????????????????????# #####+############+### | | ??????????????????????# r ^ | | ??????????????????????# | | ??????????????????????# ^ | | ??????????????????????# | | ??????????????????????# | | ???????????????????###### #######+#############+## | | ???????????????????# ! # # # | | ???????????????????# # # """"" # """" """" | | ???????????????????# # # """"" #??"""" """" | | ???????????????????# # # """ #???""" """" | | ???????????????????# ! /m/ # """" """" | | ???????????????????#!%= #g# """"" # | | ???????????????????#!! #%# """"" ############### | | ???????????????????#!! # # """ #??????????# | | ???????????????????# # # #??????????# | | ???????????????????######@##########??????????# * | | ????????????????????????# #???????????????????# | | ????????????????????????# #???????????????????# | | ????????????????????????# #???????????????????# | | ????????????????????????+ ???????????????????# | | ????????????????????????###???????????????????#= | | ??????????????????????????????????????????????# = | | ??????????????????????????????????????????????# | | ??????????????????????????????????????????????# | | ??????????????????????????????????????????????#### | | ?????????????????????????????????????????????????? | | ?????????????????????????????????????????????????? | | ?????????????????????????????????????????????????? | | ?????????????????????????????????????????????????? | | ?????????????????????????????????????????????????? | | ?????????????????????????????????????????????????? | | ?????????????????????????????????????????????????? | | ?????????????????????????????????????????????????? | | ?????????????????????????????????????????????????? | | ?????????????????????????????????????????????????? | | ?????????????????????????????????????????????????? | | ?????????????????????????????????????????????????? | | ?????????????????????????????????????????????????? | | ?????????????????????????????????????????????????? | | ?????????????????????????????????????????????????? | +----------------------------------------------------+ Best States ------------- Heat Dissipation 34 Energy Generation 15 Energy Capacity 265 Matter Stores 300 Matter Capacity 300 Sight Range 20 Robot Scan Range 14 Terrain Scan Density 10 Armor Coverage 300 Evasion (%) 63 Item Schematics ----------------- None Robot Schematics ------------------ None Fabricated ------------ Nothing Alien Tech Used ----------------- None Achievements -------------- Dynamic Key GoHome() Librarian Made in Tau Ceti IV Challenges ------------ None Game ------ Seed CompactIonChronowheel Manual? 0 Play Time 00:34:35 Cumulative 2.2 hours Start 2024.04.03 @ 16:20:16 End 2024.04.03 @ 16:52:32 Sessions 1 Manual Loads 0 Difficulty Rogue Special Mode None Game No. 5 Rogue 5 Adventurer 0 Explorer 0 Win Type - Total 0 Types 0/0/0/0/0/0/0/0/0 Lore% 3 Gallery% 6 Achievement% 7 Wizard Run 0 Options --------- Layout 0 ASCII 0 Keyboard 0 Movement Arrows Keybinds 0 Fullscreen 1 Font 18/SmallcapsGlow Map View 76x50 Zoom Use 0% Tactical HUD 0 Map Filters NONE Filters NONE Steam 1 RUN: ad904dd3-38d5-4ff0-8144-1879acdd9d31